bitfinex/quotes_SOLUSD_20250902
["timestamp","ask_amount","ask_price","bid_price","bid_amount"]
[1756805944566,0.06,204.16,204.14,4.33226192]
[1756805944756,0.06,204.16,204.15,35.23062096]
[1756805945348,0.06,204.16,204.15,49.95129615]
[1756805949250,0.06,204.16,204.15,50.63129615]
[1756805949787,0.06,204.16,204.15,49.95129615]
[1756805950455,0.06,204.16,204.15,45.61903423]
[1756805950662,0.06,204.16,204.15,49.95129615]
[1756805951045,0.06,204.16,204.15,24.77345772]
[1756805951251,37.92,204.21,204.19,4.89739948]
[1756805951450,37.92,204.21,204.2,4.33226192]
[1756805951756,38.58,204.21,204.2,4.33226192]
[1756805952265,38.58,204.21,204.18,30.89762763]
[1756805952463,0.66,204.2,204.19,26.0]
[1756805952671,38.58,204.21,204.19,26.0]
[1756805953373,38.58,204.21,204.2,4.89715964]
[1756805954168,0.66,204.23,204.2,4.89715964]
[1756805954351,37.94,204.22,204.2,4.89715964]
[1756805954747,38.6,204.22,204.2,4.89715964]
[1756805955690,38.6,204.22,204.2,9.22942156]
[1756805956279,0.66,204.21,204.2,35.22942156]
[1756805957175,37.94,204.21,204.2,35.22942156]
[1756805958078,37.94,204.21,204.2,30.89715964]
[1756805958266,37.94,204.21,204.2,35.22942156]
[1756805959687,13.59559401,204.26,204.2,35.90942156]
[1756805959895,0.66,204.26,204.25,4.33226192]
[1756805960107,13.59559401,204.25,204.21,14.71562064]
[1756805960267,13.73775558,204.3,204.25,26.0]
[1756805960268,2.5617548,204.3,204.25,26.0]
[1756805960588,0.66,204.32,204.29,30.33226192]
[1756805960887,0.66,204.32,204.31,4.33226192]
[1756805962091,0.66,204.32,204.3,14.71056954]
[1756805962300,0.66,204.31,204.3,14.71056954]
[1756805962591,0.66,204.31,204.3,26.0]
[1756805963373,0.66,204.33,204.3,30.33226192]
[1756805963677,38.14,204.31,204.3,26.0]
[1756805963985,38.8,204.32,204.3,30.89455384]
[1756805964690,38.8,204.32,204.3,35.22681576]
[1756805964862,0.66,204.31,204.29,14.71056955]
[1756805965067,0.66,204.3,204.29,4.33226192]
[1756805965268,38.14,204.32,204.29,4.33226192]
[1756805965484,38.8,204.32,204.29,30.33226192]
[1756805965804,0.66,204.31,204.3,26.0]
[1756805965968,0.66,204.31,204.3,35.22702452]
[1756805966968,0.66,204.31,204.3,9.22702452]
[1756805967594,38.14,204.32,204.3,28.76358707]
[1756805967793,38.8,204.32,204.31,2.76358707]
[1756805968681,38.76,204.32,204.31,2.76358707]
[1756805968884,38.76,204.32,204.3,2.76358707]
[1756805969087,0.66,204.31,204.29,48.36915881]
[1756805969910,38.1,204.32,204.29,40.71056954]
[1756805970078,0.66,204.3,204.29,26.0]
[1756805970270,0.66,204.3,204.29,30.8950022]
[1756805971193,38.76,204.32,204.29,30.8950022]
[1756805971391,0.66,204.31,204.29,30.8950022]
[1756805971598,38.1,204.32,204.29,30.8950022]
[1756805971905,0.66,204.31,204.3,4.89452463]
[1756805972085,38.08,204.31,204.3,7.6581117]
[1756805973892,38.74,204.31,204.3,7.6581117]
[1756805974593,0.76,204.37,204.32,26.0]
[1756805974821,0.76,204.37,204.34,26.0]
[1756805974822,38.22,204.36,204.34,26.0]
[1756805975000,38.22,204.36,204.35,2.76358707]
[1756805976026,38.88,204.36,204.35,4.89356496]
[1756805976215,38.86,204.36,204.35,7.65715203]
[1756805976398,38.2,204.36,204.35,7.65715203]
[1756805977007,38.2,204.36,204.35,4.89356496]
[1756805977204,38.2,204.36,204.35,7.65715203]
[1756805977522,38.2,204.36,204.34,2.76358707]
[1756805977825,38.2,204.36,204.35,43.46982987]
[1756805978030,38.2,204.36,204.35,48.36339483]
[1756805978253,0.1,204.37,204.35,45.59980776]
[1756805978405,38.18,204.36,204.35,45.59980776]
[1756805978717,38.18,204.36,204.35,33.65715203]
[1756805978928,38.18,204.36,204.35,48.36267395]
[1756805980715,38.18,204.36,204.35,49.18483552]
[1756805981194,0.1,204.37,204.36,0.14216157]
[1756805981395,0.1,204.37,204.36,3.58574864]
[1756805981601,0.06,204.4,204.36,3.58574864]
[1756805981800,0.06,204.4,204.39,28.90574864]
[1756805982224,0.06,204.4,204.39,31.03476884]
[1756805982528,0.06,204.4,204.39,48.50027451]
[1756805984312,0.06,204.4,204.39,49.18027451]
[1756805985112,0.06,204.4,204.39,48.50027451]
[1756805987106,0.06,204.4,204.39,45.59452587]
[1756805987305,0.77,204.4,204.39,48.35811294]
[1756805987920,0.06,204.4,204.39,48.35811294]
[1756805989423,0.06,204.4,204.39,49.03811294]
[1756805990031,0.06,204.4,204.39,48.35811294]
[1756805992340,0.06,204.4,204.39,49.18027451]
[1756805992535,0.06,204.4,204.39,60.23462279]
[1756805992734,0.06,204.4,204.39,48.50027451]
[1756805994725,0.06,204.4,204.39,49.18027451]
[1756805994923,0.71,204.48,204.4,0.14216157]
[1756805995229,38.85,204.48,204.47,2.76358707]
[1756805995840,13.59559401,204.52,204.44,14.69831704]
[1756805996031,0.71,204.48,204.44,2.76358707]
[1756805996229,0.71,204.47,204.43,22.35499448]
[1756805996432,0.71,204.46,204.43,14.69975746]
[1756805996628,38.93,204.45,204.42,4.89185247]
[1756805996827,38.93,204.45,204.42,7.65543954]
[1756805996828,0.71,204.44,204.42,7.65543954]
[1756805997038,0.71,204.43,204.42,7.65543954]
[1756805998359,0.71,204.43,204.39,43.46478521]
[1756805998540,0.71,204.42,204.41,26.0]
[1756805999265,0.71,204.42,204.4,26.0]
[1756805999435,0.71,204.41,204.4,26.0]
[1756806000143,0.71,204.41,204.39,30.89260063]
[1756806000342,0.71,204.4,204.37,0.03]
[1756806000556,38.24,204.39,204.37,4.92305727]
[1756806000785,38.24,204.39,204.38,26.0]
[1756806001442,38.95,204.39,204.38,26.0]
[1756806001760,2.76358707,204.42,204.38,26.0]
[1756806001761,38.24,204.4,204.39,0.14216157]
[1756806002070,38.24,204.4,204.39,2.90574864]
[1756806002969,38.24,204.4,204.39,33.79835591]
[1756806004269,38.24,204.4,204.39,33.65619434]
[1756806004474,38.24,204.4,204.39,30.89260727]
[1756806004687,38.24,204.4,204.39,33.65619434]
[1756806004866,38.95,204.4,204.38,14.7019186]
[1756806005067,3.47358707,204.39,204.37,0.03]
[1756806005378,2.76358707,204.38,204.37,0.03]
[1756806005758,3.47358707,204.38,204.37,0.03]
[1756806006988,38.99,204.38,204.37,0.03]
[1756806007171,0.71,204.38,204.37,2.79358707]
[1756806007370,2.76358707,204.45,204.37,2.79358707]
[1756806007577,0.71,204.42,204.39,2.76358707]
[1756806007777,54.65918108,204.44,204.39,2.76358707]
[1756806007979,3.47358707,204.41,204.37,26.03]
[1756806008179,39.03,204.4,204.37,26.03]
[1756806008390,0.71,204.39,204.37,26.03]
[1756806008595,39.03,204.38,204.37,26.03]
[1756806009085,39.01,204.38,204.37,26.03]
[1756806009287,38.3,204.38,204.37,27.35705526]
[1756806009468,55.36918108,204.38,204.37,1.35705526]
[1756806009879,14.30559401,204.38,204.37,1.35705526]
[1756806010173,55.38918108,204.38,204.37,1.35705526]
[1756806010380,60.28202773,204.38,204.37,1.35705526]
[1756806010702,60.56635087,204.38,204.37,1.35705526]
[1756806012262,60.58635087,204.38,204.37,1.35705526]
[1756806012699,60.56635087,204.38,204.37,1.35705526]
[1756806014467,22.24635087,204.38,204.37,1.35705526]
[1756806015109,60.54635087,204.38,204.37,1.35705526]
[1756806015285,17.35350422,204.38,204.37,1.35705526]
[1756806015469,55.65350422,204.38,204.37,1.35705526]
[1756806017371,60.54635087,204.38,204.37,1.35705526]
[1756806018466,22.24635087,204.38,204.37,1.35705526]
[1756806018789,60.52635087,204.38,204.37,1.35705526]
[1756806021283,22.24635087,204.38,204.37,1.35705526]
[1756806021494,60.50635087,204.38,204.37,1.35705526]
[1756806021794,19.4827638,204.38,204.37,1.35705526]
[1756806022093,60.50635087,204.38,204.37,1.35705526]
[1756806022888,13.59559401,204.38,204.37,1.35705526]
[1756806023085,38.28,204.38,204.37,9.72370971]
[1756806023491,0.06,204.4,204.37,9.72370971]
[1756806023676,0.06,204.4,204.39,2.76358707]
[1756806023880,38.34,204.4,204.39,2.76358707]
[1756806024286,38.34,204.4,204.39,3.47358707]
[1756806024475,0.06,204.4,204.39,3.47358707]
[1756806024671,0.06,204.4,204.39,29.47358707]
[1756806024872,38.34,204.4,204.39,29.47358707]
[1756806025394,0.06,204.4,204.39,29.47358707]
[1756806025596,0.06,204.4,204.39,19.56270419]
[1756806025767,0.06,204.4,204.39,34.26390234]
[1756806025965,0.06,204.4,204.39,23.20955406]
[1756806026382,0.06,204.4,204.39,34.26390234]
[1756806026565,14.30559401,204.49,204.42,26.0]
[1756806026772,14.30559401,204.49,204.46,2.76358707]
[1756806027070,14.30559401,204.49,204.45,2.76358707]
[1756806027071,38.28,204.48,204.45,2.76358707]
[1756806027267,38.28,204.47,204.45,2.76358707]
[1756806027467,38.28,204.47,204.45,4.31208147]
[1756806028072,38.28,204.47,204.43,30.89159035]
[1756806028269,38.28,204.47,204.44,4.31208147]
[1756806029594,0.71,204.48,204.44,9.20329572]
[1756806029794,38.28,204.47,204.44,9.20329572]
[1756806030178,0.71,204.48,204.44,9.20329572]
[1756806030385,38.26,204.46,204.44,9.20329572]
[1756806031600,38.26,204.46,204.38,4.89284665]
[1756806031601,5.02208147,204.45,204.38,4.89284665]
[1756806031809,5.02208147,204.45,204.41,26.0]
[1756806031979,0.71,204.44,204.41,26.0]
[1756806032178,38.26,204.43,204.41,26.0]
[1756806032697,38.97,204.43,204.41,26.0]
[1756806033698,38.97,204.43,204.4,26.0]
[1756806034002,38.26,204.43,204.4,26.0]
[1756806034204,0.71,204.42,204.41,26.0]
[1756806034386,5.02208147,204.42,204.37,1.35705526]
[1756806034605,5.02208147,204.41,204.37,1.35705526]
[1756806034793,38.97,204.4,204.38,26.0]
[1756806034984,0.71,204.39,204.38,26.0]
[1756806035590,0.71,204.39,204.37,1.35705526]
[1756806035799,0.71,204.38,204.37,27.35705526]
[1756806036118,0.71,204.38,204.37,1.35705526]
[1756806036790,43.28208147,204.4,204.37,1.35705526]
[1756806036991,0.71,204.39,204.37,1.35705526]
[1756806037416,0.71,204.38,204.37,1.35705526]
[1756806038724,17.90767548,204.38,204.37,1.35705526]
[1756806038913,23.51052213,204.38,204.37,1.35705526]
[1756806039591,23.79484527,204.38,204.37,1.35705526]
[1756806041009,26.35522336,204.38,204.37,1.35705526]
[1756806045407,64.55522336,204.38,204.37,1.35705526]
[1756806046630,26.35522336,204.38,204.37,1.35705526]
[1756806046815,64.55522336,204.38,204.37,1.35705526]
[1756806048629,22.04314189,204.38,204.37,1.35705526]
[1756806048927,64.53522336,204.38,204.37,1.35705526]
[1756806050931,20.75237671,204.38,204.37,1.35705526]
[1756806051121,58.91237671,204.38,204.37,1.35705526]
[1756806052635,54.60029524,204.38,204.37,1.35705526]
[1756806052834,58.91237671,204.38,204.37,1.35705526]
[1756806053034,59.58237671,204.38,204.37,1.35705526]
[1756806055015,64.47522336,204.38,204.37,1.35705526]
[1756806055214,64.45522336,204.38,204.37,1.35705526]
[1756806055415,13.59559401,204.38,204.37,2.05705526]
[1756806055619,51.73559401,204.38,204.37,2.05705526]
[1756806056314,13.59559401,204.38,204.37,6.95014132]
[1756806056536,38.2,204.38,204.37,6.95014132]
[1756806058825,38.2,204.38,204.37,1.35705526]
[1756806060221,38.16,204.38,204.37,6.25011056]
[1756806060424,57.02199862,204.38,204.37,1.35705526]
[1756806061129,14.69207872,204.38,204.37,1.35705526]
[1756806061449,57.22416019,204.38,204.37,1.35705526]
[1756806062572,62.11700684,204.38,204.37,1.35705526]
[1756806064133,39.87991715,204.35,204.34,0.03]
[1756806064353,87.30556358,204.35,204.34,0.03]
[1756806064554,87.97556358,204.35,204.34,0.03]
[1756806064955,49.75556358,204.35,204.34,0.03]
[1756806065269,87.97556358,204.35,204.34,0.03]
[1756806065640,0.14216157,204.33,204.21,0.7]
[1756806065937,0.28432314,204.27,204.18,6.29612082]
[1756806066143,13.87991715,204.21,204.18,6.29612082]
[1756806066347,52.15991715,204.2,204.19,0.7]
[1756806067556,52.15991715,204.2,204.19,5.59739948]
[1756806067739,52.15991715,204.2,204.19,4.89739948]
[1756806068558,13.87991715,204.2,204.19,4.89739948]
[1756806068762,13.87991715,204.2,204.19,5.59739948]
[1756806068950,52.13991715,204.2,204.19,5.59739948]
[1756806069860,52.13991715,204.2,204.17,4.89764117]
[1756806070266,52.13991715,204.2,204.17,5.57764117]
[1756806070464,13.87991715,204.2,204.18,0.68]
[1756806070759,38.26,204.19,204.18,0.68]
[1756806071763,38.26,204.19,204.18,5.57763933]
[1756806072476,2.56158163,204.25,204.18,9.8897208]
[1756806072769,51.83559401,204.24,204.22,4.31208147]
[1756806072967,38.24,204.23,204.22,0.68]
[1756806073150,38.28,204.23,204.22,0.68]
[1756806074166,38.28,204.23,204.22,9.88876152]
[1756806075449,38.28,204.23,204.21,26.0]
[1756806075450,38.28,204.23,204.21,30.89686834]
[1756806075649,38.28,204.23,204.21,35.20894981]
[1756806076469,13.59559401,204.28,204.22,4.99208147]
[1756806076693,13.59559401,204.33,204.27,4.31208147]
[1756806076867,13.59559401,204.33,204.31,4.31208147]
[1756806077050,0.7,204.36,204.31,4.31208147]
[1756806077250,38.98,204.35,204.31,4.31208147]
[1756806077451,13.87991715,204.34,204.31,4.31208147]
[1756806077677,13.59559401,204.32,204.31,4.31208147]
[1756806077854,38.28,204.32,204.31,4.31208147]
[1756806078571,13.59559401,204.34,204.32,4.89428347]
[1756806078748,2.56079457,204.37,204.33,4.99208147]
[1756806078749,13.59559401,204.37,204.33,4.99208147]
[1756806078952,0.7,204.38,204.35,4.31208147]
[1756806079169,38.28,204.36,204.35,4.31208147]
[1756806079376,38.28,204.36,204.34,4.31208147]
[1756806079571,13.59559401,204.37,204.35,4.31208147]
[1756806079777,38.28,204.36,204.35,4.31208147]
[1756806080496,38.28,204.36,204.35,9.20564643]
[1756806081171,13.59559401,204.39,204.35,9.88564643]
[1756806081380,51.87559401,204.38,204.37,4.31208147]
[1756806082469,51.87559401,204.38,204.35,4.89356496]
[1756806082669,14.29559401,204.37,204.34,9.20586612]
[1756806082860,38.26,204.36,204.34,9.20586612]
[1756806085062,38.26,204.36,204.35,4.31208147]
[1756806086976,38.26,204.36,204.35,9.20564643]
[1756806087491,38.26,204.36,204.35,7.65600236]
[1756806088004,38.96,204.36,204.33,2.7624374]
[1756806088169,0.7,204.35,204.33,2.7624374]
[1756806088369,38.92,204.34,204.31,28.7624374]
[1756806088616,0.7,204.33,204.29,4.89477262]
[1756806088780,52.51559401,204.32,204.28,14.71201236]
[1756806089096,0.28432314,204.33,204.3,2.7624374]
[1756806089274,51.83559401,204.32,204.31,2.7624374]
[1756806090181,51.83559401,204.32,204.28,9.7903851]
[1756806090489,52.53559401,204.32,204.31,2.7624374]
[1756806092401,51.83559401,204.32,204.3,7.6571145]
[1756806092698,51.83559401,204.32,204.31,2.7624374]
[1756806092874,51.83559401,204.32,204.3,4.8946771]
[1756806093074,51.83559401,204.32,204.31,2.7624374]
[1756806093268,51.83559401,204.32,204.3,7.6571145]
[1756806093681,13.59559401,204.32,204.31,2.7624374]
[1756806093880,51.79559401,204.32,204.31,2.7624374]
[1756806094380,51.79559401,204.32,204.3,7.6571145]
[1756806094984,52.49559401,204.32,204.3,4.8946771]
[1756806095183,52.49559401,204.32,204.3,7.6571145]
[1756806095591,14.29559401,204.31,204.28,30.89519652]
[1756806095789,38.9,204.3,204.28,30.89519652]
[1756806096205,38.9,204.3,204.28,26.0]
[1756806096422,38.9,204.3,204.28,28.7624374]
[1756806096611,38.9,204.3,204.28,33.65763428]
[1756806096777,38.2,204.3,204.28,33.65763428]
[1756806097305,38.2,204.3,204.29,2.7624374]
[1756806097816,38.88,204.3,204.28,33.65763428]
[1756806097985,0.7,204.29,204.28,33.65763428]
[1756806098181,0.7,204.32,204.28,33.65763428]
[1756806098499,13.59559401,204.33,204.29,2.7624374]
[1756806098696,38.18,204.32,204.29,2.7624374]
[1756806098904,0.06,204.36,204.33,26.0]
[1756806099215,0.06,204.36,204.35,2.7624374]
[1756806099508,38.26,204.36,204.35,2.7624374]
[1756806099810,38.26,204.36,204.35,7.65600236]
[1756806100479,0.06,204.36,204.35,23.05368712]
[1756806100892,38.26,204.36,204.35,23.05368712]
[1756806101089,0.06,204.36,204.35,23.05368712]
[1756806101311,38.26,204.36,204.35,23.05368712]
[1756806103212,38.26,204.36,204.35,22.36368712]
[1756806103415,38.26,204.36,204.35,23.05368712]
[1756806104602,38.24,204.36,204.35,23.05368712]
[1756806104804,0.06,204.39,204.38,26.0]
[1756806105113,0.06,204.39,204.38,39.812187]
[1756806105499,0.06,204.39,204.38,41.77263496]
[1756806106429,0.06,204.39,204.38,46.66548161]
[1756806107298,0.06,204.39,204.38,35.61573201]
[1756806108493,14.30559401,204.39,204.35,4.89338706]
[1756806108698,14.30559401,204.39,204.38,2.7624374]
[1756806108699,13.65559401,204.39,204.38,2.7624374]
[1756806109309,13.59559401,204.38,204.37,2.7624374]
[1756806109521,14.24559401,204.38,204.37,2.7624374]
[1756806110142,0.65,204.38,204.37,2.7624374]
[1756806110340,0.65,204.38,204.35,30.89350309]
[1756806110551,0.65,204.37,204.35,26.0]
[1756806110748,38.16,204.36,204.35,30.89356496]
[1756806110946,38.81,204.36,204.35,26.0]
[1756806111128,38.16,204.36,204.35,30.89356496]
[1756806111437,38.81,204.36,204.35,30.89356496]
[1756806111639,38.16,204.36,204.35,30.89356496]
[1756806111839,38.16,204.36,204.35,33.65600236]
[1756806112227,38.16,204.36,204.35,28.7624374]
[1756806112228,38.81,204.36,204.35,28.7624374]
[1756806112837,52.40559401,204.36,204.35,2.7624374]
[1756806114226,52.40559401,204.36,204.32,26.0]
[1756806114426,0.65,204.36,204.35,2.7624374]
[1756806114634,38.14,204.36,204.35,7.65597058]
[1756806116246,38.79,204.36,204.35,2.7624374]
[1756806116746,38.79,204.36,204.34,2.7624374]
[1756806117042,0.65,204.35,204.34,2.7624374]
[1756806117251,14.52991715,204.35,204.34,2.7624374]
[1756806117419,38.14,204.35,204.34,2.7624374]
[1756806118127,38.14,204.35,204.34,7.65624184]
[1756806118431,38.14,204.35,204.34,8.34624184]
[1756806118740,0.06,204.39,204.34,20.58075294]
[1756806118939,0.06,204.39,204.38,2.7624374]
[1756806119320,38.2,204.39,204.38,2.7624374]
[1756806120444,0.06,204.39,204.38,7.65528405]
[1756806120626,38.2,204.39,204.38,7.65528405]
[1756806122248,0.06,204.39,204.38,7.65528405]
[1756806122444,38.18,204.39,204.38,7.65528405]
[1756806123165,38.18,204.39,204.35,1.96083237]
[1756806123328,52.42559401,204.39,204.38,2.7624374]
[1756806123828,38.2,204.39,204.38,2.7624374]
[1756806124031,38.85,204.39,204.38,2.7624374]
[1756806124430,0.06,204.39,204.38,7.65528405]
[1756806124627,38.2,204.39,204.36,4.8933255]
[1756806124847,0.06,204.39,204.38,39.812187]
[1756806125056,0.06,204.39,204.38,40.502187]
[1756806125674,0.06,204.39,204.38,41.77263496]
[1756806125848,0.06,204.39,204.38,30.72288536]
[1756806126367,0.06,204.39,204.38,31.41288536]
[1756806126667,0.06,204.39,204.38,8.34528405]
[1756806127171,0.06,204.39,204.38,7.65528405]
[1756806129370,0.75,204.39,204.38,7.65528405]
[1756806129572,0.06,204.39,204.38,7.65528405]
[1756806130570,38.2,204.39,204.38,7.65528405]
[1756806130957,0.06,204.39,204.38,7.65528405]
[1756806131955,0.06,204.39,204.38,19.40503365]
[1756806132167,38.2,204.39,204.38,19.40503365]
[1756806132472,38.2,204.39,204.38,21.36548161]
[1756806134366,0.06,204.39,204.38,21.36548161]
[1756806134746,0.06,204.39,204.38,20.66548161]
[1756806135259,0.06,204.39,204.38,21.36548161]
[1756806136969,0.06,204.39,204.38,20.66548161]
[1756806139155,0.69,204.46,204.4,26.0]
[1756806139350,38.77,204.46,204.45,2.7624374]
[1756806140558,38.12,204.46,204.45,2.7624374]
[1756806140860,38.12,204.46,204.45,7.65360883]
[1756806140861,38.81,204.46,204.45,7.65360883]
[1756806143367,38.79,204.46,204.45,7.65360883]
[1756806143577,38.1,204.46,204.45,7.65360883]
[1756806143875,38.79,204.46,204.45,7.65360883]
[1756806144067,38.79,204.46,204.45,2.7624374]
[1756806145676,38.79,204.46,204.45,7.65360883]
[1756806146752,0.69,204.48,204.45,7.65360883]
[1756806146954,14.28559401,204.48,204.47,2.7624374]
[1756806147158,52.34559401,204.48,204.47,2.7624374]
[1756806148166,14.28559401,204.48,204.47,2.7624374]
[1756806148371,52.32559401,204.48,204.47,2.7624374]
[1756806149554,13.59559401,204.47,204.37,12.93242224]
[1756806149759,13.59559401,204.47,204.41,30.31209239]
[1756806149760,13.59559401,204.45,204.41,30.31209239]
[1756806149976,38.04,204.44,204.41,30.31209239]
[1756806150277,0.69,204.43,204.41,30.31209239]
[1756806150475,38.04,204.44,204.41,30.31209239]
[1756806150476,0.69,204.42,204.41,30.31209239]
[1756806151164,38.04,204.44,204.41,30.31209239]
[1756806151165,38.73,204.44,204.41,30.31209239]
[1756806151368,0.69,204.43,204.41,26.0]
[1756806151567,0.69,204.43,204.42,4.31209239]
[1756806152501,38.04,204.43,204.42,9.20398163]
[1756806153463,14.28559401,204.46,204.42,9.20398163]
[1756806153464,0.69,204.46,204.42,9.20398163]
[1756806153668,38.02,204.45,204.42,5.59188924]
[1756806153874,38.02,204.45,204.44,4.31209239]
[1756806154489,38.02,204.45,204.44,9.20350307]
[1756806156196,38.71,204.45,204.44,9.20350307]
[1756806157560,38.71,204.45,204.44,4.31209239]
[1756806159172,52.30559401,204.45,204.41,4.89203098]
[1756806159373,0.68,204.44,204.42,4.31209239]
[1756806159597,0.68,204.43,204.42,4.31209239]
[1756806159893,0.68,204.43,204.4,30.8923339]
[1756806160080,38.68,204.42,204.4,30.8923339]
[1756806160779,38.0,204.42,204.4,30.8923339]
[1756806161184,38.0,204.42,204.41,9.20422095]
[1756806161507,38.0,204.46,204.41,9.92422095]
[1756806161703,38.0,204.46,204.45,4.31209239]
[1756806161993,0.06,204.49,204.45,4.31209239]
[1756806161994,38.02,204.47,204.46,26.0]
[1756806162290,38.02,204.47,204.46,30.31209239]
[1756806163403,38.02,204.47,204.46,35.2030246]
[1756806166197,38.08,204.47,204.46,35.2030246]
[1756806166995,38.76,204.47,204.46,35.2030246]
[1756806167600,38.08,204.47,204.46,35.2030246]
[1756806170512,38.76,204.47,204.46,4.31209239]
[1756806172610,0.06,204.47,204.46,9.2030246]
[1756806172996,38.04,204.47,204.46,9.2030246]
[1756806173994,38.72,204.47,204.46,9.2030246]
[1756806174802,38.04,204.47,204.46,9.2030246]
[1756806177876,38.04,204.47,204.46,4.89093221]
[1756806178188,38.04,204.47,204.46,9.2030246]
[1756806179098,38.04,204.47,204.46,4.89093221]
[1756806179300,38.04,204.47,204.46,9.2030246]
[1756806180320,38.72,204.47,204.44,4.31209239]
[1756806180520,0.68,204.46,204.44,4.31209239]
[1756806180820,0.68,204.45,204.44,4.31209239]
[1756806181113,0.68,204.45,204.43,4.31209239]
[1756806181312,38.66,204.44,204.43,30.31209239]
[1756806181824,38.66,204.44,204.43,4.31209239]
[1756806182820,38.66,204.44,204.41,0.03]
[1756806183502,38.66,204.44,204.41,4.34209239]
[1756806183705,0.68,204.43,204.41,4.34209239]
[1756806184019,0.68,204.42,204.41,4.34209239]
[1756806184396,0.68,204.42,204.41,0.03]
[1756806184600,0.68,204.42,204.41,4.34209239]
[1756806185006,38.66,204.42,204.41,4.34209239]
[1756806185318,37.98,204.42,204.41,4.34209239]
[1756806185524,38.66,204.42,204.41,4.34209239]
[1756806185908,0.68,204.44,204.41,9.23422095]
[1756806186219,37.98,204.42,204.41,4.92212856]
[1756806186641,38.66,204.42,204.41,4.92212856]
[1756806186814,38.66,204.42,204.41,0.03]
[1756806187318,38.66,204.42,204.41,4.34209239]
[1756806188313,37.98,204.42,204.41,9.23422095]
[1756806191629,0.72,204.44,204.41,9.23422095]
[1756806191812,37.98,204.42,204.41,4.92212856]
[1756806192018,37.98,204.42,204.41,9.23422095]
[1756806193531,0.72,204.44,204.41,9.23422095]
[1756806193736,38.7,204.43,204.41,9.23422095]
[1756806194329,38.7,204.43,204.42,4.31209239]
[1756806195136,38.7,204.43,204.41,4.92212856]
[1756806195306,38.7,204.43,204.42,4.31209239]
[1756806196521,38.7,204.43,204.42,9.20398163]
[1756806197306,38.7,204.43,204.42,4.89188924]
[1756806197511,38.7,204.43,204.42,9.20398163]
[1756806199015,0.72,204.46,204.42,9.20398163]
[1756806199215,0.06,204.47,204.45,4.31209239]
[1756806199414,37.98,204.46,204.43,0.68]
[1756806199621,37.98,204.46,204.45,30.31209239]
[1756806200327,0.06,204.47,204.45,30.31209239]
[1756806200509,0.06,204.47,204.46,4.31209239]
[1756806200831,0.06,204.47,204.46,9.2030246]
[1756806200832,38.04,204.47,204.46,9.2030246]
[1756806201935,0.06,204.47,204.46,9.2030246]
[1756806202136,38.04,204.47,204.46,9.2030246]
[1756806203144,0.06,204.47,204.46,9.2030246]
[1756806203345,38.04,204.47,204.46,9.2030246]
[1756806204346,38.04,204.47,204.46,4.89093221]
[1756806204713,38.76,204.47,204.46,9.2030246]
[1756806205656,0.78,204.47,204.46,9.2030246]
[1756806205947,38.76,204.47,204.46,9.2030246]
[1756806207267,38.76,204.47,204.46,4.31209239]
[1756806208257,38.74,204.47,204.46,4.31209239]
[1756806209443,38.74,204.47,204.46,2.7595243]
[1756806211496,0.78,204.47,204.46,2.7595243]
[1756806211657,38.74,204.47,204.46,2.7595243]
[1756806212987,0.78,204.47,204.46,2.7595243]
[1756806213184,38.74,204.47,204.46,2.7595243]
[1756806214480,0.78,204.47,204.46,2.7595243]
[1756806214682,38.74,204.47,204.46,2.7595243]
[1756806218179,38.74,204.47,204.45,4.89112296]
[1756806218379,38.02,204.47,204.46,2.7595243]
[1756806218970,38.73,204.47,204.46,2.7595243]
[1756806222194,38.73,204.47,204.46,7.65045651]
[1756806222987,38.73,204.47,204.46,2.7595243]